bitfinex/quotes_SOLUSD_20250902
["timestamp","ask_amount","ask_price","bid_price","bid_amount"]
[1756791662255,26.0,203.29,203.28,0.65]
[1756791663074,26.0,203.29,203.28,5.5693231]
[1756791663259,0.06,203.3,203.28,5.5693231]
[1756791663564,0.06,203.3,203.29,0.65]
[1756791664761,0.06,203.3,203.28,4.9193231]
[1756791664960,0.06,203.3,203.27,0.68]
[1756791664961,26.06,203.3,203.27,0.68]
[1756791665177,26.73,203.3,203.27,0.03]
[1756791665479,0.67,203.29,203.27,0.03]
[1756791665865,0.67,203.28,203.27,0.03]
[1756791666757,3.98334538,203.28,203.27,0.03]
[1756791667391,26.0,203.29,203.27,0.03]
[1756791667870,26.0,203.28,203.27,0.03]
[1756791672075,29.31473921,203.28,203.27,0.03]
[1756791673787,0.06,203.3,203.27,0.7]
[1756791674092,3.37536483,203.3,203.28,5.58929244]
[1756791674399,3.37536483,203.3,203.29,0.67]
[1756791674573,3.37536483,203.3,203.27,0.03]
[1756791674574,0.67,203.29,203.27,0.03]
[1756791675277,3.37569055,203.3,203.27,0.03]
[1756791675469,3.37569055,203.3,203.27,0.7]
[1756791676186,3.31632243,203.29,203.28,0.67]
[1756791676388,0.06,203.3,203.28,0.67]
[1756791677184,0.06,203.3,203.29,0.67]
[1756791677585,0.06,203.3,203.27,5.61955816]
[1756791677879,0.06,203.3,203.27,4.94955816]
[1756791678084,0.06,203.3,203.28,0.67]
[1756791678285,0.06,203.29,203.28,0.67]
[1756791679400,0.06,203.29,203.28,5.5893231]
[1756791684080,0.06,203.29,203.28,79.5893231]
[1756791689294,0.06,203.29,203.28,78.9193231]
[1756791689694,0.06,203.29,203.28,79.5893231]
[1756791690115,0.06,203.29,203.27,0.03]
[1756791690116,0.73,203.29,203.27,0.03]
[1756791690281,0.06,203.29,203.27,0.03]
[1756791691094,26.73,203.29,203.27,0.03]
[1756791691485,0.06,203.29,203.27,0.7]
[1756791691692,0.06,203.29,203.28,0.67]
[1756791691900,0.06,203.29,203.27,0.03]
[1756791692204,0.73,203.29,203.27,0.03]
[1756791693197,0.06,203.29,203.27,0.03]
[1756791694601,0.06,203.29,203.28,0.67]
[1756791694908,0.06,203.29,203.27,4.94956511]
[1756791695206,0.06,203.29,203.27,5.62956511]
[1756791696009,0.06,203.29,203.27,4.94956511]
[1756791697305,0.77,203.29,203.27,0.03]
[1756791697502,0.06,203.29,203.27,0.03]
[1756791703685,0.77,203.29,203.27,0.03]
[1756791704103,0.06,203.29,203.27,0.03]
[1756791705091,0.06,203.29,203.27,74.03]
[1756791705293,0.77,203.29,203.27,74.03]
[1756791705616,0.06,203.29,203.27,74.03]
[1756791705800,0.06,203.29,203.27,74.71]
[1756791706312,0.06,203.29,203.27,0.71]
[1756791706509,0.06,203.29,203.27,0.03]
[1756791706718,0.71,203.28,203.27,0.03]
[1756791707390,26.71,203.28,203.27,0.03]
[1756791707589,67.90648154,203.28,203.25,0.03]
[1756791707791,3.31648154,203.27,203.25,0.03]
[1756791708010,3.31648154,203.27,203.24,0.03]
[1756791708011,26.0,203.25,203.24,0.03]
[1756791708200,34.23653074,203.25,203.24,0.03]
[1756791708397,36.91896674,203.25,203.22,0.03]
[1756791708687,26.0,203.21,203.19,0.03]
[1756791708915,41.19648154,203.2,203.17,0.03]
[1756791709092,3.31648154,203.19,203.17,0.03]
[1756791709295,4.02648154,203.19,203.17,0.03]
[1756791710012,41.21648154,203.19,203.17,0.03]
[1756791710904,41.92648154,203.19,203.17,0.03]
[1756791713119,26.0,203.17,203.15,0.03]
[1756791713423,26.0,203.17,203.13,0.03]
[1756791713424,63.9,203.16,203.13,0.03]
[1756791713627,64.61,203.16,203.13,0.03]
[1756791713827,66.583311,203.16,203.13,0.03]
[1756791714409,4.92247108,203.15,203.12,0.03]
[1756791714814,26.0,203.13,203.12,0.03]
[1756791715019,63.9,203.13,203.12,0.03]
[1756791715332,64.61,203.13,203.12,0.03]
[1756791715934,63.9,203.13,203.12,0.03]
[1756791720526,38.61,203.13,203.12,0.03]
[1756791721819,37.9,203.13,203.12,0.03]
[1756791722025,38.61,203.13,203.12,0.03]
[1756791722409,37.9,203.13,203.12,0.03]
[1756791724310,38.61,203.13,203.12,0.03]
[1756791724632,37.9,203.13,203.12,0.03]
[1756791725834,63.92,203.13,203.12,0.03]
[1756791728431,69.56295574,203.13,203.08,74.03]
[1756791728630,71.53655874,203.13,203.08,0.03]
[1756791729025,69.56295574,203.13,203.08,0.03]
[1756791729212,26.0,203.09,203.08,0.03]
[1756791729417,63.92,203.09,203.08,0.03]
[1756791735920,26.0,203.09,203.08,0.03]
[1756791736122,63.92,203.09,203.08,0.03]
[1756791736553,26.0,203.09,203.08,0.03]
[1756791736755,63.92,203.09,203.08,0.03]
[1756791737439,26.0,203.09,203.08,0.69]
[1756791737624,63.92,203.09,203.08,74.69]
[1756791737826,63.92,203.09,203.08,0.69]
[1756791740548,37.92,203.09,203.08,5.61416781]
[1756791740935,37.92,203.09,203.08,79.61416781]
[1756791741832,37.92,203.09,203.08,74.69]
[1756791743249,37.92,203.09,203.08,0.69]
[1756791746447,37.92,203.09,203.08,74.69]
[1756791747628,37.92,203.09,203.08,0.69]
[1756791748230,26.06,203.11,203.08,0.69]
[1756791748446,37.92,203.1,203.08,0.69]
[1756791749834,37.92,203.09,203.08,0.69]
[1756791750648,37.92,203.09,203.08,74.69]
[1756791752155,37.92,203.09,203.08,0.69]
[1756791752838,43.56392535,203.09,203.08,0.03]
[1756791753031,43.56392535,203.09,203.07,0.03]
[1756791753232,0.72,203.08,203.07,0.03]
[1756791753460,4.03718071,203.08,203.07,0.03]
[1756791753646,34.96134852,203.08,203.07,0.03]
[1756791755458,29.31718071,203.08,203.07,0.72]
[1756791755660,63.92,203.08,203.07,0.03]
[1756791756544,26.0,203.08,203.07,0.03]
[1756791756743,63.92,203.08,203.07,0.03]
[1756791757158,0.06,203.11,203.07,0.72]
[1756791757344,37.92,203.1,203.07,0.72]
[1756791758242,3.32151207,203.09,203.07,0.72]
[1756791758450,37.92,203.08,203.07,0.72]
[1756791758643,41.24172523,203.08,203.07,0.03]
[1756791759049,37.92,203.08,203.07,0.03]
[1756791759251,37.92,203.08,203.07,0.72]
[1756791761740,37.92,203.08,203.07,0.03]
[1756791761943,37.92,203.08,203.07,0.72]
[1756791763594,0.06,203.11,203.07,5.64429174]
[1756791763745,37.98,203.11,203.08,0.69]
[1756791765668,0.06,203.11,203.09,4.92392535]
[1756791765986,0.06,203.11,203.1,0.69]
[1756791767688,0.06,203.11,203.1,5.61368291]
[1756791768663,0.06,203.11,203.1,4.92368291]
[1756791768873,0.06,203.11,203.1,79.61368291]
[1756791769562,0.06,203.11,203.1,5.61368291]
[1756791772476,0.06,203.11,203.1,79.61368291]
[1756791773885,0.06,203.11,203.1,5.61368291]
[1756791777082,0.06,203.11,203.1,79.61368291]
[1756791777382,0.06,203.11,203.1,4.92368291]
[1756791777571,0.06,203.11,203.09,0.69]
[1756791778380,38.67,203.11,203.08,4.92416781]
[1756791779582,0.77,203.11,203.07,4.9544103]
[1756791779773,38.67,203.11,203.07,5.6444103]
[1756791780290,38.67,203.11,203.07,79.6444103]
[1756791781880,37.96,203.11,203.08,0.69]
[1756791782467,37.96,203.11,203.07,79.6444103]
[1756791782675,38.67,203.11,203.07,79.6444103]
[1756791783075,37.96,203.11,203.09,4.92392535]
[1756791784791,0.06,203.11,203.09,4.92392535]
[1756791785091,37.96,203.11,203.09,0.69]
[1756791785267,37.96,203.11,203.07,0.03]
[1756791785468,37.96,203.11,203.07,0.73]
[1756791785665,38.63,203.11,203.07,0.73]
[1756791785888,37.96,203.11,203.07,0.03]
[1756791786096,37.96,203.11,203.08,0.7]
[1756791787001,37.96,203.11,203.08,5.62416781]
[1756791787898,0.67,203.1,203.07,0.03]
[1756791788200,26.0,203.08,203.07,0.03]
[1756791788374,63.9,203.08,203.07,0.03]
[1756791788575,64.57,203.08,203.07,0.03]
[1756791789586,26.0,203.09,203.07,0.03]
[1756791789778,37.9,203.08,203.07,0.03]
[1756791791390,26.73,203.11,203.07,0.03]
[1756791791574,26.0,203.08,203.07,4.9544103]
[1756791794003,37.9,203.08,203.07,0.03]
[1756791800893,0.06,203.11,203.07,0.73]
[1756791801206,37.9,203.1,203.07,0.73]
[1756791802087,37.9,203.1,203.08,4.92416781]
[1756791802308,37.9,203.1,203.09,0.7]
[1756791802712,0.06,203.11,203.09,0.7]
[1756791804613,0.06,203.11,203.09,4.92376311]
[1756791804818,0.06,203.11,203.09,5.62376311]
[1756791805201,0.06,203.11,203.09,4.92376311]
[1756791806218,0.06,203.11,203.09,0.7]
[1756791806404,0.06,203.11,203.09,74.7]
[1756791807387,0.06,203.11,203.1,4.92368291]
[1756791807592,0.06,203.11,203.1,5.62368291]
[1756791810716,0.06,203.11,203.1,19.21927692]
[1756791812507,0.06,203.11,203.1,93.21927692]
[1756791812811,0.06,203.11,203.1,79.62368291]
[1756791816899,0.06,203.11,203.1,5.62368291]
[1756791819911,0.06,203.11,203.1,79.62368291]
[1756791820710,0.75,203.11,203.09,4.92387445]
[1756791820924,0.06,203.11,203.09,4.92387445]
[1756791822802,0.06,203.11,203.08,0.03]
[1756791823016,0.06,203.11,203.08,0.71]
[1756791823811,0.06,203.11,203.08,74.71]
[1756791824121,0.06,203.11,203.09,4.92392535]
[1756791826031,0.75,203.11,203.08,4.95413722]
[1756791827623,26.06,203.11,203.08,4.95413722]
[1756791827827,26.75,203.11,203.08,0.03]
[1756791828428,26.06,203.11,203.08,0.03]
[1756791828731,26.06,203.11,203.08,0.71]
[1756791829734,26.06,203.11,203.09,4.92392535]
[1756791831337,26.75,203.11,203.09,4.92392535]
[1756791831720,26.06,203.11,203.09,4.92392535]
[1756791832838,0.69,203.1,203.08,4.95413636]
[1756791833226,26.75,203.11,203.08,4.95413636]
[1756791833423,26.69,203.1,203.08,0.03]
[1756791833637,37.88,203.09,203.08,0.03]
[1756791834233,38.57,203.09,203.08,0.03]
[1756791838733,2.0337,203.11,203.08,0.03]
[1756791838942,37.88,203.09,203.08,0.03]
[1756791840239,3.31435269,203.09,203.08,0.03]
[1756791841719,67.19435269,203.09,203.08,0.03]
[1756791842238,3.31435269,203.09,203.08,0.71]
[1756791842416,41.19435269,203.09,203.08,0.71]
[1756791843239,41.19435269,203.09,203.08,0.03]
[1756791843542,3.31435269,203.09,203.08,0.03]
[1756791843724,3.31435269,203.09,203.08,0.71]
[1756791843921,4.00435269,203.09,203.08,0.03]
[1756791847530,8.92827804,203.09,203.08,0.03]
[1756791847745,26.0,203.06,203.05,0.03]
[1756791848041,67.19435269,203.06,203.05,0.03]
[1756791848628,72.8390055,203.06,203.05,0.03]
[1756791848843,72.8390055,203.06,203.04,0.03]
[1756791849045,3.31435269,203.05,203.04,0.03]
[1756791849438,4.03435269,203.05,203.04,0.03]
[1756791849646,6.00863769,203.05,203.04,0.03]
[1756791850038,6.00863769,203.05,203.03,0.03]
[1756791850353,63.88,203.04,203.03,0.03]
[1756791850523,72.11949059,203.04,203.03,0.03]
[1756791850727,72.83949059,203.04,203.03,0.03]
[1756791851329,46.83949059,203.04,203.03,0.03]
[1756791851749,3.31435269,203.04,203.03,0.69]
[1756791851931,37.88,203.04,203.03,0.69]
[1756791852347,37.88,203.04,203.03,0.03]
[1756791852840,38.6,203.04,203.03,0.03]
[1756791853248,37.88,203.04,203.03,0.03]
[1756791855944,42.8051379,203.04,203.03,0.03]
[1756791856250,37.88,203.04,203.03,0.03]
[1756791858348,39.854382,203.04,203.03,0.03]
[1756791859257,39.854382,203.04,203.03,0.69]
[1756791859660,64.6,203.04,203.03,0.03]
[1756791859864,69.526105,203.04,203.03,0.03]
[1756791860248,74.4512429,203.04,203.03,0.03]
[1756791860553,68.806105,203.04,203.03,0.03]
[1756791860767,63.88,203.04,203.03,0.03]
[1756791860960,65.854382,203.04,203.03,0.03]
[1756791861469,66.574382,203.04,203.03,0.03]
[1756791861971,45.4995199,203.04,203.02,0.03]
[1756791862263,26.0,203.0,202.93,13.59559401]
[1756791862468,26.0,203.01,203.0,0.66]
[1756791862972,63.88,203.01,203.0,0.66]
[1756791863276,63.88,203.01,202.98,0.66]
[1756791863459,63.88,203.01,202.99,0.66]
[1756791865465,63.88,203.01,202.97,4.92660427]
[1756791865667,63.88,203.01,202.98,0.66]
[1756791865870,63.88,203.01,202.97,4.92660427]
[1756791866075,63.88,203.01,202.99,0.66]
[1756791867581,63.88,203.01,203.0,0.03]
[1756791868355,63.88,203.01,203.0,0.69]
[1756791868653,26.0,203.03,203.0,0.03]
[1756791868863,37.88,203.02,203.0,0.03]
[1756791869366,37.88,203.01,203.0,0.03]
[1756791870479,26.0,203.01,203.0,0.03]
[1756791870683,63.88,203.01,203.0,0.69]
[1756791870859,63.88,203.01,203.0,0.03]
[1756791871773,37.88,203.01,203.0,0.03]
[1756791873383,63.9,203.01,203.0,0.03]
[1756791874173,63.9,203.01,203.0,0.69]
[1756791874882,37.88,203.01,203.0,0.69]
[1756791875967,26.0,203.02,203.0,0.69]
[1756791876197,37.88,203.01,203.0,5.61605283]
[1756791876760,0.06,203.04,203.0,5.61605283]
[1756791876959,0.06,203.04,203.01,0.71]
[1756791877586,0.06,203.04,203.01,4.20899348]
[1756791877966,0.06,203.04,203.03,4.92538048]
[1756791878476,0.06,203.04,203.03,5.63538048]
[1756791882194,0.06,203.04,203.03,4.92538048]
[1756791882405,0.06,203.04,203.01,20.43913888]
[1756791882696,0.06,203.04,203.02,0.71]
[1756791883212,0.06,203.04,203.03,0.71]
[1756791885290,0.06,203.04,203.03,5.63538048]
[1756791886770,0.06,203.04,203.03,0.71]
[1756791887285,0.06,203.04,203.03,5.63538048]
[1756791891080,0.06,203.04,203.03,79.63538048]
[1756791891370,0.06,203.04,203.03,5.63538048]
[1756791894401,0.06,203.04,203.03,79.63538048]
[1756791895986,0.06,203.04,203.03,93.23097449]
[1756791896190,0.06,203.04,203.03,79.63538048]
[1756791897493,0.06,203.04,203.03,5.63538048]
[1756791900590,0.06,203.04,203.03,79.63538048]
[1756791905306,0.06,203.04,203.03,93.23097449]
[1756791905502,0.06,203.04,203.03,22.54149849]
[1756791908599,0.06,203.04,203.03,96.54149849]
[1756791911802,0.06,203.04,203.03,116.80538048]
[1756791912003,0.06,203.04,203.03,78.92538048]
[1756791912205,0.06,203.04,203.03,79.61538048]
[1756791914914,0.06,203.04,203.03,5.61538048]
[1756791915224,0.06,203.04,203.03,19.21097449]
[1756791915390,0.06,203.04,203.03,21.45052623]
[1756791916595,1e-08,203.04,203.03,21.45052623]
[1756791917100,1e-08,203.07,203.06,39.59559401]
[1756791917313,1e-08,203.07,203.06,80.18761103]
[1756791917526,1e-08,203.07,203.06,80.87761103]
[1756791917908,1e-08,203.07,203.06,154.87761103]
[1756791918109,1e-08,203.07,203.06,154.38514575]
[1756791918513,0.06,203.11,203.1,39.59559401]
[1756791918839,0.06,203.11,203.1,79.69514575]
[1756791919054,0.06,203.11,203.1,80.38514575]
[1756791919622,0.06,203.11,203.1,37.86]
[1756791919924,0.06,203.11,203.1,52.14559401]
[1756791920726,0.06,203.11,203.1,57.06927692]
[1756791921053,0.06,203.11,203.1,59.30882866]
[1756791921624,0.06,203.11,203.1,131.06927692]
[1756791922044,0.06,203.11,203.1,133.30882866]
[1756791922354,0.06,203.11,203.1,131.06927692]
[1756791922925,0.06,203.11,203.1,133.30882866]
[1756791924127,0.06,203.11,203.1,78.92368291]
[1756791924325,0.74,203.11,203.07,13.59559401]
[1756791924642,0.74,203.11,203.07,51.47559401]
[1756791925344,0.06,203.11,203.07,52.16559401]
[1756791925541,0.06,203.11,203.07,57.09000431]
[1756791926343,0.06,203.11,203.09,13.59559401]
[1756791926843,0.06,203.11,203.09,51.47559401]
[1756791927232,0.06,203.11,203.09,126.16559401]
[1756791927631,0.06,203.11,203.1,4.92368291]
[1756791929158,0.74,203.11,203.1,4.92368291]
[1756791929457,0.06,203.11,203.1,4.92368291]
[1756791932127,0.06,203.11,203.1,59.32882866]
[1756791932734,1e-08,203.11,203.1,59.32882866]
[1756791932948,0.06,203.13,203.1,59.32882866]
[1756791933157,0.06,203.13,203.12,15.83514575]
[1756791933359,0.06,203.13,203.12,53.73514575]
[1756791933654,0.06,203.13,203.12,54.42514575]
[1756791934347,0.06,203.13,203.12,57.10879211]
[1756791934740,0.06,203.13,203.12,59.34834385]
[1756791934951,0.06,203.14,203.13,13.59559401]
[1756791935140,0.06,203.14,203.13,16.52514575]
[1756791935964,0.06,203.14,203.13,90.52514575]
[1756791936158,0.06,203.18,203.13,90.52514575]
[1756791936363,0.06,203.18,203.15,15.83514575]
[1756791936762,0.06,203.18,203.15,16.54514575]
[1756791937446,0.06,203.18,203.17,2.23955174]
[1756791937842,0.06,203.18,203.17,2.94955174]
[1756791938044,0.06,203.18,203.17,40.86955174]
[1756791938238,0.06,203.18,203.17,43.55198651]
[1756791939654,0.06,203.18,203.17,5.63198651]
[1756791939852,0.06,203.18,203.17,43.55198651]
[1756791940367,0.06,203.18,203.17,45.79153825]
[1756791940567,0.06,203.18,203.17,119.79153825]
[1756791940972,0.06,203.18,203.17,117.55198651]
[1756791941267,0.06,203.18,203.17,119.79153825]
[1756791942057,1e-08,203.18,203.17,133.38713226]
[1756791943852,1e-08,203.18,203.17,68.34533922]
[1756791944054,1e-08,203.25,203.24,41.83514575]
[1756791944262,1e-08,203.25,203.24,79.87514575]
[1756791944444,1e-08,203.25,203.24,85.50543703]
[1756791946868,1e-08,203.25,203.24,159.50543703]
[1756791948786,1e-08,203.25,203.24,239.80543703]
[1756791949085,1e-08,203.25,203.24,239.78543703]
[1756791950957,1e-08,203.25,203.24,237.54588529]
[1756791951158,1e-08,203.25,203.24,201.76543703]
[1756791951574,1e-08,203.25,203.24,239.76543703]
[1756791951960,1e-08,203.25,203.24,165.76543703]
[1756791954779,1e-08,203.3,203.29,13.59559401]
[1756791954959,1e-08,203.3,203.29,208.11514575]
[1756791955155,1e-08,203.3,203.29,170.13514575]
[1756791955359,1e-08,203.3,203.29,208.11514575]
[1756791955568,1e-08,203.3,203.29,127.81514575]
[1756791955763,1e-08,203.3,203.29,89.83514575]
[1756791955957,1e-08,203.3,203.29,127.81514575]
[1756791956356,1e-08,203.3,203.29,87.59559401]
[1756791956556,1e-08,203.3,203.29,130.49467512]
[1756791957977,1e-08,203.3,203.29,56.47467512]
[1756791959689,1e-08,203.3,203.24,104.9014564]
[1756791959690,0.70000001,203.3,203.27,38.04]
[1756791959873,0.7,203.29,203.27,38.04]
[1756791960568,0.7,203.29,203.28,4.9193231]
[1756791960966,0.7,203.29,203.28,78.9193231]
[1756791961494,0.7,203.29,203.24,38.04]
[1756791961663,0.7,203.28,203.24,38.04]
[1756791961981,0.7,203.27,203.24,38.04]
[1756791962494,1e-08,203.3,203.24,38.04]
[1756791963173,1e-08,203.3,203.23,13.59559401]
[1756791963174,0.7,203.29,203.23,13.59559401]
[1756791963480,0.7,203.28,203.23,51.65559401]
[1756791963661,0.7,203.27,203.23,51.65559401]
[1756791963853,0.7,203.26,203.23,51.65559401]
[1756791964266,0.7,203.26,203.23,125.65559401]
[1756791964985,1e-08,203.3,203.22,4.92077551]
[1756791964986,0.7,203.25,203.22,4.92077551]
[1756791965169,0.65,203.24,203.21,4.92101766]
[1756791965486,0.65,203.23,203.21,4.92101766]
[1756791965680,0.65,203.22,203.21,4.92101766]
[1756791966687,0.65,203.28,203.21,4.92101766]
[1756791966877,0.65,203.28,203.22,38.28]
[1756791967668,0.65,203.28,203.23,13.59559401]
[1756791968087,0.65,203.28,203.23,87.59559401]
[1756791968385,26.00000001,203.3,203.22,51.89559401]
[1756791968588,0.65,203.27,203.23,4.92053338]
[1756791968787,0.65,203.26,203.19,4.92150204]
[1756791969090,0.65,203.25,203.19,4.92150204]
[1756791970088,0.65,203.25,203.2,38.38]
[1756791970572,0.65,203.24,203.2,38.38]
[1756791971286,0.65,203.24,203.21,4.92101766]
[1756791972306,0.65,203.27,203.21,4.92101766]
[1756791972586,1e-08,203.3,203.21,4.92101766]
[1756791972796,26.0,203.29,203.21,4.92101766]
[1756791972973,26.0,203.28,203.21,4.92101766]
[1756791973171,26.65,203.28,203.21,4.92101766]
[1756791973366,0.65,203.27,203.21,4.92101766]
[1756791973594,26.0,203.29,203.21,43.28101766]
[1756791973793,0.65,203.28,203.21,43.31101766]
[1756791973992,0.65,203.27,203.21,43.31101766]
[1756791974294,0.65,203.26,203.21,43.31101766]
[1756791974490,1e-08,203.3,203.22,13.59559401]
[1756791974674,1e-08,203.3,203.22,17.75796192]
[1756791974875,1e-08,203.3,203.24,13.59559401]
[1756791975082,1e-08,203.3,203.24,51.97559401]
[1756791975274,1e-08,203.3,203.25,0.67]
[1756791975784,1e-08,203.3,203.26,0.67]
[1756791976899,1e-08,203.3,203.27,0.67]
[1756791977076,1e-08,203.3,203.26,0.67]
[1756791977406,1e-08,203.3,203.26,74.67]
[1756791977776,1e-08,203.3,203.27,4.91956511]
[1756791978192,1e-08,203.3,203.26,78.91976313]
[1756791978993,1e-08,203.3,203.26,79.58976313]
[1756791979501,0.65,203.29,203.21,51.96559401]
[1756791979682,0.65,203.28,203.21,51.96559401]
[1756791980490,0.65,203.28,203.22,4.92054144]
[1756791982401,0.65,203.28,203.22,78.92054144]
[1756791983682,0.65,203.28,203.22,79.59054144]
[1756791984387,0.65,203.28,203.22,78.92054144]
[1756791984589,0.65,203.28,203.24,4.92029128]
[1756791986779,0.65,203.28,203.24,0.67]
[1756791988002,0.65,203.28,203.24,5.59022577]
[1756791988396,0.65,203.28,203.24,0.67]
[1756791988605,0.65,203.28,203.24,5.59021592]
[1756791989902,3.30190638,203.29,203.24,5.59021592]
[1756791990096,3.95190638,203.29,203.24,5.59021592]
[1756791990494,3.95190638,203.29,203.24,74.67]
[1756791990713,8.87107172,203.29,203.24,74.67]
[1756791990894,3.30190638,203.28,203.24,74.67]
[1756791991403,3.30190638,203.28,203.25,0.67]
[1756791991601,3.30190639,203.3,203.26,0.67]
[1756791992206,3.30559125,203.3,203.26,0.67]
[1756791992408,29.95559125,203.3,203.26,0.67]
[1756791992597,3.30559124,203.29,203.26,0.67]
[1756791992796,3.30559124,203.29,203.24,79.62022722]
[1756791993111,3.30559124,203.29,203.25,0.67]
[1756791993303,3.30559124,203.29,203.26,0.67]
[1756791994118,3.30559124,203.29,203.27,0.67]
[1756791994507,3.30559124,203.29,203.24,78.95022722]
[1756791994508,3.30559124,203.29,203.25,0.67]
[1756791994707,3.30559124,203.29,203.26,0.67]
[1756791995393,3.30559124,203.29,203.27,0.68]
[1756791995816,1e-08,203.3,203.27,0.68]
[1756791996217,1e-08,203.3,203.27,39.0]
[1756791996602,1e-08,203.3,203.28,0.68]
[1756791997703,1e-08,203.3,203.29,18.51467512]
[1756791998626,1e-08,203.3,203.29,19.19467512]
[1756791998932,1e-08,203.3,203.29,22.68704303]
[1756792001505,1e-08,203.3,203.29,96.68704303]
[1756792001904,1e-08,203.3,203.29,93.19467512]
[1756792002105,1e-08,203.3,203.29,131.51467512]
[1756792003527,1e-08,203.3,203.29,92.51467512]
[1756792003729,1e-08,203.3,203.29,93.19467512]
[1756792005228,1e-08,203.3,203.29,92.51467512]
[1756792005736,1e-08,203.3,203.29,93.19467512]
[1756792005923,1e-08,203.3,203.29,131.63467512]
[1756792006528,1e-08,203.3,203.29,118.03908111]
[1756792006734,1e-08,203.3,203.29,117.35908111]
[1756792006933,1e-08,203.3,203.29,118.03908111]
[1756792007634,1e-08,203.3,203.29,117.35908111]
[1756792009145,1e-08,203.3,203.29,78.91908111]
[1756792009348,1e-08,203.3,203.29,79.59908111]
[1756792010945,1e-08,203.3,203.29,5.59908111]
[1756792011157,1e-08,203.3,203.29,19.19467512]
[1756792012524,1e-08,203.3,203.29,57.57467512]
[1756792014049,1e-08,203.3,203.29,131.57467512]
[1756792016540,1e-08,203.3,203.29,135.06704303]
[1756792017264,1e-08,203.3,203.29,131.57467512]
[1756792017553,1e-08,203.3,203.29,135.06704303]
[1756792019946,1e-08,203.3,203.29,135.00704303]
[1756792020654,1e-08,203.3,203.29,141.30704303]
[1756792020833,1e-08,203.33,203.32,39.59559401]
[1756792021034,1e-08,203.33,203.32,81.40796192]
[1756792021236,1e-08,203.33,203.32,78.59559401]
[1756792021558,1e-08,203.33,203.32,80.82757844]
[1756792021730,1e-08,203.33,203.32,85.74593374]
[1756792023260,1e-08,203.33,203.32,47.42593374]
[1756792023457,1e-08,203.33,203.32,85.74593374]
[1756792023766,1e-08,203.33,203.32,159.74593374]
[1756792025845,1e-08,203.34,203.33,13.59559401]
[1756792026046,0.71,203.41,203.33,16.49757844]
[1756792026254,0.71,203.41,203.35,15.82757844]
[1756792026562,0.71,203.41,203.37,13.59559401]
[1756792026754,0.71,203.41,203.38,43.19690431]
[1756792029170,0.71,203.4,203.39,38.26]
[1756792030869,0.71,203.42,203.39,43.17652443]
[1756792031056,0.71,203.41,203.39,43.17652443]
[1756792033376,0.71,203.42,203.39,43.17652443]
[1756792033879,3.30060446,203.44,203.39,4.91652443]
[1756792034070,0.71,203.43,203.39,43.13652443]
[1756792034272,0.71,203.42,203.39,43.13652443]
[1756792035483,4.01060446,203.44,203.39,43.80652443]
[1756792035781,0.71,203.43,203.39,43.80652443]
[1756792036356,0.71,203.42,203.39,43.13652443]